[Event "WYCC 2018 G18"]
[Site "Halkidiki"]
[Date "2018.10.26"]
[Round "7"]
[White "Nguyen, Thi Minh Thu"]
[Black "Tsivelekidou, Evgenia"]
[Result "1-0"]
[ECO "E50"]
[WhiteElo "1849"]
[BlackElo "1891"]
[Annotator "NA"]
[PlyCount "165"]
[EventDate "2018.10.20"]
[EventType "swiss"]
[EventCountry "GRE"]
[SourceTitle "playchess.com"]
[Source "ChessBase"]
[SourceQuality "1"]
[TimeControl "40/5400+30:1800+30"]

1. d4 {[%emt 0:00:00]} Nf6 {[%emt 0:00:00]} 2. c4 {[%emt 0:00:00]} e6 {[%emt 0:00:00]} 3. Nc3 {[%emt 0:00:39]} Bb4 {[%emt 0:00:00]} 4. e3 {[%emt 0:01:09]} O-O {[%emt 0:00:00]} 5. Nf3 {[%emt 0:00:10]} d6 {[%emt 0:00:41]} 6. Bd2 {[%emt 0:00:50]} Qe7 {[%emt 0:01:01]} 7. Qc2 {[%emt 0:01:53]} e5 {[%emt 0:00:38]} 8. a3 {[%emt 0:03:37]} Bxc3 {[%emt 0:00:15]} 9. Bxc3 {[%emt 0:00:06]} Nbd7 {[%emt 0:03:17]} 10. dxe5 {[%emt 0:01:42]} dxe5 {[%emt 0:01:34]} 11. Be2 {[%emt 0:02:01]} a5 {[%emt 0:02:38]} 12. b3 {[%emt 0:01:40]} b6 {[%emt 0:02:10]} 13. O-O {[%emt 0:02:57]} Bb7 {[%emt 0:01:30]} 14. b4 {[%emt 0:01:23]} Ne4 {[%emt 0:05:41]} 15. Bb2 {[%emt 0:05:27]} Ng5 {[%emt 0:03:31]} 16. Nxg5 {[%emt 0:05:08]} Qxg5 {[%emt 0:00:06]} 17. e4 {[%emt 0:00:25]} Nf6 {[%emt 0:05:12]} 18. Bf3 {[%emt 0:00:38]} c5 {[%emt 0:10:54]} 19. bxc5 {[%emt 0:01:01]} bxc5 {[%emt 0:00:06]} 20. Rab1 {[%emt 0:00:47]} Bc6 {[%emt 0:03:17]} 21. Rfe1 {[%emt 0:01:05]} Nd7 {[%emt 0:05:02]} 22. Rbd1 {[%emt 0:04:38]} Qg6 {[%emt 0:07:57]} 23. Rd2 {[%emt 0:01:00]} Rfe8 {[%emt 0:04:50]} 24. Qd1 {[%emt 0:02:46]} Rab8 {[%emt 0:03:38]} 25. Rxd7 {[%emt 0:01:35]} Bxd7 {[%emt 0:02:04]} 26. Qxd7 {[%emt 0:00:22]} f6 {[%emt 0:01:05]} 27. Qd5+ {[%emt 0:00:39]} Kh8 {[%emt 0:02:00]} 28. Bc1 {[%emt 0:00:53]} Rec8 {[%emt 0:01:59]} 29. h3 {[%emt 0:01:11]} Qe8 {[%emt 0:02:28]} 30. Bg4 {[%emt 0:00:35]} Rc7 {[%emt 0:03:29]} 31. Rd1 {[%emt 0:02:38]} h5 {[%emt 0:03:40]} 32. Bf3 {[%emt 0:01:32]} Rcc8 {[%emt 0:03:26]} 33. Qd2 {[%emt 0:03:54]} a4 {[%emt 0:03:19]} 34. Qe2 {[%emt 0:00:06]} g6 35. g4 {[%emt 0:00:11]} hxg4 {[%emt 0:01:11]} 36. Bxg4 {[%emt 0:00:47]} Rd8 37. Be3 Qc6 {[%emt 0:02:42]} 38. Rxd8+ {[%emt 0:02:39]} Rxd8 {[%emt 0:00:02]} 39. f3 {[%emt 0:00:40]} Qb6 {[%emt 0:03:50]} 40. Qf2 {[%emt 0:00:00]} Kg7 {[%emt 0:00:00]} 41. f4 {[%emt 0:10:31]} Qb1+ {[%emt 0:04:10]} 42. Kh2 {[%emt 0:00:34]} Qxe4 {[%emt 0:03:01]} 43. Be2 {[%emt 0:00:49]} exf4 44. Qxf4 {[%emt 0:00:04]} Qxf4+ {[%emt 0:01:26]} 45. Bxf4 {[%emt 0:00:48]} g5 {[%emt 0:02:28]} 46. Bc1 {[%emt 0:00:45]} Rb8 47. Kg2 Rb3 {[%emt 0:02:06]} 48. Kf2 {[%emt 0:00:51]} Rc3 49. Be3 {[%emt 0:00:35]} Rxa3 {[%emt 0:02:29]} 50. Bxc5 {[%emt 0:00:11]} Rxh3 {[%emt 0:00:49]} 51. Bd4 {[%emt 0:00:36]} a3 {[%emt 0:02:34]} 52. c5 {[%emt 0:00:15]} Rh1 {[%emt 0:05:19]} 53. Bf1 {[%emt 0:00:16]} Rh8 {[%emt 0:03:30]} 54. c6 {[%emt 0:00:33]} Ra8 {[%emt 0:02:43]} 55. Bh3 {[%emt 0:00:58]} Kg6 {[%emt 0:05:55]} 56. Bd7 {[%emt 0:00:19]} f5 {[%emt 0:00:59]} 57. c7 {[%emt 0:00:08]} g4 {[%emt 0:01:13]} 58. c8=Q {[%emt 0:00:09]} Rxc8 {[%emt 0:00:03]} 59. Bxc8 {[%emt 0:00:05]} Kg5 {[%emt 0:00:12]} 60. Be6 {[%emt 0:00:15]} Kf4 {[%emt 0:01:31]} 61. Bc5 {[%emt 0:00:17]} a2 {[%emt 0:00:47]} 62. Bxa2 {[%emt 0:00:15]} Ke4 {[%emt 0:00:10]} 63. Kg3 {[%emt 0:00:20]} Ke5 {[%emt 0:00:09]} 64. Be3 {[%emt 0:00:12]} Ke4 {[%emt 0:00:22]} 65. Bf4 {[%emt 0:00:14]} Kd4 {[%emt 0:00:19]} 66. Bb1 {[%emt 0:00:07]} Kd5 {[%emt 0:00:12]} 67. Bxf5 {[%emt 0:00:06]} Kd4 {[%emt 0:00:08]} 68. Kxg4 {[%emt 0:00:29]} Kd5 {[%emt 0:00:07]} 69. Kf3 {[%emt 0:00:32]} Kd4 {[%emt 0:00:19]} 70. Ke2 {[%emt 0:00:11]} Kc4 {[%emt 0:00:28]} 71. Ke3 {[%emt 0:00:16]} Kd5 {[%emt 0:00:13]} 72. Kd3 {[%emt 0:00:13]} Kc5 {[%emt 0:00:20]} 73. Be6 {[%emt 0:00:07]} Kb5 {[%emt 0:00:33]} 74. Kc3 {[%emt 0:00:07]} Kb6 {[%emt 0:01:25]} 75. Kc4 {[%emt 0:00:49]} Kc6 {[%emt 0:00:16]} 76. Be5 {[%emt 0:00:05]} Kb6 {[%emt 0:00:43]} 77. Bd7 {[%emt 0:00:09]} Kb7 {[%emt 0:00:19]} 78. Kb5 {[%emt 0:01:42]} Ka8 {[%emt 0:00:18]} 79. Kc6 {[%emt 0:00:11]} Ka7 {[%emt 0:00:04]} 80. Bc8 {[%emt 0:00:10]} Ka8 {[%emt 0:00:06]} 81. Kc7 {[%emt 0:00:18]} Ka7 {[%emt 0:00:16]} 82. Bd4+ {[%emt 0:00:11]} Ka8 {[%emt 0:00:15]} 83. Bb7# {[%emt 0:00:05]} 1-0

[Event "WYCC 2018 G18"]
[Site "Halkidiki"]
[Date "2018.10.26"]
[Round "7"]
[White "Hunt, Fikirte"]
[Black "Hrescak, Ivana"]
[Result "0-1"]
[ECO "A10"]
[WhiteElo "1827"]
[BlackElo "2173"]
[Annotator "NA"]
[PlyCount "58"]
[EventDate "2018.10.20"]
[EventType "swiss"]
[EventCountry "GRE"]
[SourceTitle "playchess.com"]
[Source "ChessBase"]
[SourceQuality "1"]
[TimeControl "40/5400+30:1800+30"]

1. c4 {[%emt 0:00:00]} g6 {[%emt 0:00:00]} 2. g3 {[%emt 0:00:00]} Bg7 {[%emt 0:00:00]} 3. Bg2 {[%emt 0:00:00]} d6 {[%emt 0:00:00]} 4. Nf3 {[%emt 0:00:19]} e5 {[%emt 0:00:43]} 5. d3 {[%emt 0:00:20]} Nc6 {[%emt 0:02:43]} 6. Nc3 {[%emt 0:00:45]} f5 {[%emt 0:00:17]} 7. O-O {[%emt 0:02:55]} Nge7 {[%emt 0:01:55]} 8. Rb1 {[%emt 0:00:24]} a5 {[%emt 0:01:38]} 9. a3 {[%emt 0:00:21]} O-O {[%emt 0:00:25]} 10. Bd2 {[%emt 0:02:06]} h6 {[%emt 0:01:37]} 11. b4 {[%emt 0:01:55]} axb4 {[%emt 0:00:26]} 12. axb4 {[%emt 0:00:11]} g5 {[%emt 0:00:40]} 13. b5 {[%emt 0:02:30]} Nb8 {[%emt 0:00:24]} 14. Qb3 {[%emt 0:06:52]} Nd7 {[%emt 0:07:37]} 15. Na4 {[%emt 0:03:21]} c5 {[%emt 0:11:38]} 16. bxc6 {[%emt 0:08:19]} bxc6 {[%emt 0:00:11]} 17. c5+ {[%emt 0:01:59]} d5 {[%emt 0:01:00]} 18. e4 {[%emt 0:07:00]} fxe4 {[%emt 0:07:46]} 19. dxe4 {[%emt 0:00:08]} Rxa4 {[%emt 0:01:10]} 20. Qxa4 {[%emt 0:03:54]} Nxc5 {[%emt 0:00:06]} 21. Qa2 {[%emt 0:00:12]} Nxe4 {[%emt 0:02:33]} 22. Nxe5 {[%emt 0:13:17]} Nxd2 {[%emt 0:16:06]} 23. Nxc6 {[%emt 0:00:19]} Nxc6 {[%emt 0:00:04]} 24. Bxd5+ {[%emt 0:00:07]} Kh8 {[%emt 0:00:09]} 25. Qxd2 {[%emt 0:00:19]} Nd4 {[%emt 0:03:44]} 26. Qa2 {[%emt 0:00:22]} Bh3 {[%emt 0:02:36]} 27. Rfe1 {[%emt 0:07:13]} Qd6 {[%emt 0:11:47]} 28. Rb7 {[%emt 0:04:17]} Qc5 {[%emt 0:02:38]} 29. Rbe7 {[%emt 0:13:25]} Nc2 0-1

[Event "WYCC 2018 G18"]
[Site "Halkidiki"]
[Date "2018.10.26"]
[Round "7"]
[White "Mocanu, Valeria"]
[Black "Booysen, Elda"]
[Result "1-0"]
[ECO "C11"]
[WhiteElo "1800"]
[BlackElo "1452"]
[Annotator "NA"]
[PlyCount "119"]
[EventDate "2018.10.20"]
[EventType "swiss"]
[EventCountry "GRE"]
[SourceTitle "playchess.com"]
[Source "ChessBase"]
[SourceQuality "1"]
[TimeControl "40/5400+30:1800+30"]

1. e4 {[%emt 0:00:00]} e6 {[%emt 0:00:00]} 2. d4 {[%emt 0:00:00]} d5 {[%emt 0:00:00]} 3. Nc3 {[%emt 0:00:00]} Nf6 {[%emt 0:01:49]} 4. e5 {[%emt 0:00:00]} Nfd7 {[%emt 0:00:06]} 5. f4 {[%emt 0:00:00]} c5 {[%emt 0:01:39]} 6. Nf3 {[%emt 0:00:00]} Be7 {[%emt 0:01:28]} 7. Be3 {[%emt 0:00:49]} Nc6 {[%emt 0:04:24]} 8. Qd2 {[%emt 0:00:55]} Qb6 {[%emt 0:04:19]} 9. b3 {[%emt 0:31:28]} c4 {[%emt 0:25:34]} 10. bxc4 {[%emt 0:04:26]} Bb4 {[%emt 0:01:16]} 11. Qd3 {[%emt 0:03:41]} Qa5 {[%emt 0:03:23]} 12. Bd2 {[%emt 0:00:15]} dxc4 {[%emt 0:12:06]} 13. Qxc4 {[%emt 0:00:53]} Nb6 {[%emt 0:00:39]} 14. Qd3 {[%emt 0:00:41]} Bd7 {[%emt 0:05:04]} 15. Ne4 {[%emt 0:10:03]} Ke7 {[%emt 0:08:14]} 16. a3 {[%emt 0:12:22]} Bxd2+ {[%emt 0:00:26]} 17. Qxd2 {[%emt 0:00:52]} Qxd2+ {[%emt 0:00:42]} 18. Kxd2 {[%emt 0:02:04]} Nd5 {[%emt 0:01:13]} 19. g3 {[%emt 0:00:10]} Na5 {[%emt 0:01:13]} 20. Nd6 {[%emt 0:02:03]} Bc6 {[%emt 0:02:37]} 21. Be2 {[%emt 0:02:32]} f6 {[%emt 0:03:04]} 22. Rab1 {[%emt 0:01:41]} a6 {[%emt 0:02:24]} 23. c4 {[%emt 0:01:08]} Nc7 {[%emt 0:00:06]} 24. Rhc1 {[%emt 0:08:39]} Ne8 {[%emt 0:02:43]} 25. Nxe8 {[%emt 0:01:00]} Rhxe8 {[%emt 0:00:15]} 26. Ke3 {[%emt 0:00:09]} f5 {[%emt 0:01:29]} 27. Nd2 {[%emt 0:01:13]} Red8 {[%emt 0:01:23]} 28. Nb3 {[%emt 0:00:08]} Nxb3 {[%emt 0:00:05]} 29. Rxb3 {[%emt 0:00:03]} Rd7 {[%emt 0:00:15]} 30. Rd3 {[%emt 0:00:40]} Rad8 {[%emt 0:00:49]} 31. Rcd1 {[%emt 0:00:08]} Ba4 {[%emt 0:01:01]} 32. R1d2 {[%emt 0:00:39]} Rc8 {[%emt 0:01:54]} 33. Rc3 {[%emt 0:06:11]} Bc6 {[%emt 0:07:31]} 34. d5 {[%emt 0:00:41]} Bxd5 {[%emt 0:01:31]} 35. c5 {[%emt 0:06:45]} b6 {[%emt 0:02:02]} 36. Bxa6 {[%emt 0:01:19]} Rxc5 {[%emt 0:00:11]} 37. Rxc5 {[%emt 0:01:48]} bxc5 {[%emt 0:00:04]} 38. Bb5 {[%emt 0:00:03]} Rc7 {[%emt 0:01:21]} 39. Rc2 {[%emt 0:00:34]} Be4 {[%emt 0:01:13]} 40. Rc3 {[%emt 0:00:00]} Bd5 {[%emt 0:00:00]} 41. a4 {[%emt 0:01:31]} Kd8 {[%emt 0:10:58]} 42. a5 {[%emt 0:09:15]} Kc8 {[%emt 0:02:49]} 43. Kd2 {[%emt 0:05:30]} Kb7 {[%emt 0:02:18]} 44. Rc1 {[%emt 0:03:14]} Ka7 {[%emt 0:01:31]} 45. Kc3 {[%emt 0:04:15]} Rb7 {[%emt 0:01:52]} 46. Rb1 {[%emt 0:00:47]} Be4 {[%emt 0:03:23]} 47. Rb3 {[%emt 0:02:35]} Bd5 {[%emt 0:00:51]} 48. Bc4 {[%emt 0:00:39]} Rc7 {[%emt 0:03:54]} 49. Rb6 {[%emt 0:00:10]} Rc8 {[%emt 0:04:26]} 50. Rd6 {[%emt 0:03:01]} Rc7 {[%emt 0:04:29]} 51. Bxd5 {[%emt 0:00:30]} exd5 {[%emt 0:00:04]} 52. Rxd5 {[%emt 0:00:04]} c4 {[%emt 0:01:47]} 53. e6 {[%emt 0:01:02]} Ka6 {[%emt 0:00:11]} 54. Rxf5 {[%emt 0:00:21]} Re7 {[%emt 0:00:24]} 55. Re5 {[%emt 0:00:11]} g6 {[%emt 0:00:09]} 56. Kxc4 {[%emt 0:00:10]} Kb7 {[%emt 0:00:14]} 57. g4 {[%emt 0:00:33]} Kc6 {[%emt 0:00:16]} 58. f5 {[%emt 0:00:23]} Kd6 {[%emt 0:00:35]} 59. Rd5+ {[%emt 0:00:07]} Kc6 {[%emt 0:00:10]} 60. Rd7 {[%emt 0:00:19] Kd5+} 1-0

[Event "WYCC 2018 G18"]
[Site "Halkidiki"]
[Date "2018.10.26"]
[Round "7"]
[White "Yurdakul, Didem Nuray"]
[Black "Simic, Anja"]
[Result "1-0"]
[ECO "B90"]
[WhiteElo "1604"]
[BlackElo "1813"]
[Annotator "NA"]
[PlyCount "87"]
[EventDate "2018.10.20"]
[EventType "swiss"]
[EventCountry "GRE"]
[SourceTitle "playchess.com"]
[Source "ChessBase"]
[SourceQuality "1"]
[TimeControl "40/5400+30:1800+30"]

1. e4 {[%emt 0:00:00]} c5 {[%emt 0:00:00]} 2. Nf3 {[%emt 0:00:00]} d6 {[%emt 0:00:00]} 3. d4 {[%emt 0:00:00]} cxd4 {[%emt 0:00:00]} 4. Nxd4 {[%emt 0:00:00]} Nf6 {[%emt 0:00:00]} 5. Nc3 {[%emt 0:00:13]} a6 {[%emt 0:00:10]} 6. f3 {[%emt 0:00:16]} e5 {[%emt 0:01:17]} 7. Nb3 {[%emt 0:00:15]} Be6 {[%emt 0:00:52]} 8. Be3 {[%emt 0:00:39]} Be7 {[%emt 0:00:35]} 9. Qd2 {[%emt 0:00:31]} O-O {[%emt 0:00:41]} 10. O-O-O {[%emt 0:00:35]} Nbd7 {[%emt 0:00:23]} 11. g4 {[%emt 0:00:37]} b5 {[%emt 0:00:10]} 12. g5 {[%emt 0:00:41]} b4 {[%emt 0:00:25]} 13. Ne2 {[%emt 0:00:54]} Ne8 {[%emt 0:00:23]} 14. f4 {[%emt 0:00:34]} a5 {[%emt 0:01:20]} 15. f5 {[%emt 0:00:29]} a4 {[%emt 0:01:32]} 16. Nbd4 {[%emt 0:01:03]} exd4 {[%emt 0:01:36]} 17. Nxd4 {[%emt 0:00:21]} b3 {[%emt 0:01:03]} 18. Kb1 {[%emt 0:00:49]} bxc2+ {[%emt 0:00:49]} 19. Nxc2 {[%emt 0:00:36]} Bb3 {[%emt 0:02:25]} 20. axb3 {[%emt 0:01:04]} axb3 {[%emt 0:00:22]} 21. Na3 {[%emt 0:00:53]} Ne5 {[%emt 0:21:01]} 22. h4 {[%emt 0:07:58]} Ra5 {[%emt 0:23:30]} 23. Qg2 {[%emt 0:18:32]} d5 {[%emt 0:14:35]} 24. Rxd5 {[%emt 0:10:43]} Rxd5 {[%emt 0:00:38]} 25. exd5 {[%emt 0:00:06]} Bxa3 {[%emt 0:02:24]} 26. bxa3 {[%emt 0:00:11]} Nd6 {[%emt 0:05:53]} 27. Bd4 {[%emt 0:19:14]} Nec4 {[%emt 0:03:44]} 28. Bc5 {[%emt 0:00:40]} Re8 {[%emt 0:04:40]} 29. Bxc4 {[%emt 0:02:26]} Nxc4 {[%emt 0:00:17]} 30. Rc1 {[%emt 0:00:38]} Ne5 {[%emt 0:04:51]} 31. Qe4 {[%emt 0:07:43]} Nd7 {[%emt 0:02:46]} 32. Qd4 {[%emt 0:00:31]} Nxc5 {[%emt 0:01:04]} 33. Qxc5 {[%emt 0:02:21]} h6 {[%emt 0:02:52]} 34. d6 {[%emt 0:03:34]} hxg5 {[%emt 0:00:56]} 35. hxg5 {[%emt 0:01:22]} Qxg5 {[%emt 0:02:35]} 36. d7 {[%emt 0:01:07]} Rd8 {[%emt 0:00:27]} 37. Qe5 {[%emt 0:02:34]} Qg2 {[%emt 0:01:10]} 38. Rc8 {[%emt 0:01:26]} Qa2+ {[%emt 0:00:54]} 39. Kc1 {[%emt 0:00:05]} Qxa3+ {[%emt 0:00:33]} 40. Qb2 {[%emt 0:00:00]} Qe7 {[%emt 0:00:00]} 41. Rxd8+ {[%emt 0:03:40]} Qxd8 {[%emt 0:00:40]} 42. Qd4 {[%emt 0:00:04]} Kf8 {[%emt 0:26:23]} 43. Qc5+ {[%emt 0:00:32]} Kg8 {[%emt 0:00:38]} 44. Qc8 {[%emt 0:00:05]} 1-0

[Event "WYCC 2018 G18"]
[Site "Halkidiki"]
[Date "2018.10.26"]
[Round "7"]
[White "Salas Estrada, Ana Valeria"]
[Black "Greibrokk, Ingrid"]
[Result "1/2-1/2"]
[ECO "B50"]
[WhiteElo "1593"]
[BlackElo "2018"]
[Annotator "NA"]
[PlyCount "112"]
[EventDate "2018.10.20"]
[EventType "swiss"]
[EventCountry "GRE"]
[SourceTitle "playchess.com"]
[Source "ChessBase"]
[SourceQuality "1"]
[TimeControl "40/5400+30:1800+30"]

1. e4 {[%emt 0:00:00]} c5 {[%emt 0:00:00]} 2. Nf3 {[%emt 0:00:00]} d6 {[%emt 0:00:00]} 3. d3 {[%emt 0:00:00]} Nc6 {[%emt 0:00:00]} 4. g3 {[%emt 0:00:03]} g6 {[%emt 0:00:00]} 5. Bg2 {[%emt 0:00:04]} Bg7 {[%emt 0:00:00]} 6. O-O {[%emt 0:00:06]} Nf6 {[%emt 0:00:00]} 7. Re1 {[%emt 0:00:20]} O-O {[%emt 0:00:08]} 8. c3 {[%emt 0:00:03]} Bg4 {[%emt 0:00:16]} 9. Nbd2 {[%emt 0:01:29]} Nd7 {[%emt 0:00:28]} 10. Nf1 {[%emt 0:00:36]} Nde5 {[%emt 0:01:17]} 11. Ne3 {[%emt 0:01:00]} Bxf3 {[%emt 0:00:29]} 12. Bxf3 {[%emt 0:00:28]} Nxf3+ {[%emt 0:00:04]} 13. Qxf3 {[%emt 0:00:11]} Rb8 {[%emt 0:11:18]} 14. Qe2 {[%emt 0:05:24]} b5 {[%emt 0:00:44]} 15. Ng4 {[%emt 0:05:04]} h5 {[%emt 0:00:21]} 16. Ne3 {[%emt 0:03:06]} b4 {[%emt 0:00:15]} 17. Bd2 {[%emt 0:02:11]} bxc3 {[%emt 0:00:33]} 18. Bxc3 {[%emt 0:03:55]} Nd4 {[%emt 0:00:26]} 19. Qd1 {[%emt 0:00:58]} Qd7 {[%emt 0:10:23]} 20. Rb1 {[%emt 0:18:15]} Rb7 {[%emt 0:06:21]} 21. Kg2 {[%emt 0:06:59]} Rfb8 {[%emt 0:03:39]} 22. b3 {[%emt 0:09:53]} Nf3 {[%emt 0:01:43]} 23. Qxf3 {[%emt 0:01:14]} Bxc3 {[%emt 0:00:05]} 24. Rec1 {[%emt 0:01:07]} Bg7 {[%emt 0:00:20]} 25. Rc4 {[%emt 0:06:27]} a5 {[%emt 0:07:33]} 26. Nd5 {[%emt 0:04:39]} a4 {[%emt 0:23:19]} 27. Rxa4 {[%emt 0:02:51]} e6 {[%emt 0:00:06]} 28. Nf6+ {[%emt 0:05:17]} Bxf6 {[%emt 0:00:04]} 29. Qxf6 {[%emt 0:00:06]} Qxa4 {[%emt 0:00:09]} 30. bxa4 {[%emt 0:00:06]} Rxb1 {[%emt 0:00:04]} 31. Qe7 {[%emt 0:00:48]} R1b7 {[%emt 0:10:31]} 32. Qxd6 {[%emt 0:01:16]} Ra8 {[%emt 0:00:05]} 33. Qxc5 {[%emt 0:03:44]} Rba7 {[%emt 0:00:06]} 34. d4 {[%emt 0:04:01]} Rxa4 {[%emt 0:00:34]} 35. d5 {[%emt 0:00:44]} R4a5 {[%emt 0:02:06]} 36. Qc6 {[%emt 0:03:04]} exd5 {[%emt 0:00:21]} 37. exd5 {[%emt 0:00:25]} Rd8 {[%emt 0:00:35]} 38. d6 {[%emt 0:04:24]} Ra7 {[%emt 0:00:17]} 39. a4 {[%emt 0:02:37]} Rad7 {[%emt 0:00:24]} 40. a5 {[%emt 0:00:00]} Rxd6 {[%emt 0:00:00]} 41. Qb7 {[%emt 0:02:02]} R6d7 {[%emt 0:00:15]} 42. Qa6 {[%emt 0:04:49]} Rb8 {[%emt 0:03:51]} 43. Kf3 {[%emt 0:05:55]} Rbb7 {[%emt 0:05:18]} 44. Kf4 {[%emt 0:14:06]} Ra7 {[%emt 0:03:08]} 45. Qb6 {[%emt 0:00:38]} Ra8 {[%emt 0:00:37]} 46. Kg5 {[%emt 0:02:55]} Rda7 {[%emt 0:13:17]} 47. Kh6 {[%emt 0:01:18]} Rxa5 {[%emt 0:01:32]} 48. Qf6 {[%emt 0:00:19]} Kf8 {[%emt 0:00:06]} 49. Qd6+ {[%emt 0:00:21]} Ke8 {[%emt 0:00:30]} 50. Qc6+ {[%emt 0:00:41]} Ke7 {[%emt 0:00:33]} 51. Qc7+ {[%emt 0:00:50]} Kf6 {[%emt 0:04:31]} 52. Qd6+ {[%emt 0:01:52]} Kf5 {[%emt 0:00:54]} 53. Qf4+ {[%emt 0:00:33]} Ke6 {[%emt 0:00:07]} 54. Qe4+ {[%emt 0:00:30]} Kd6 {[%emt 0:02:50]} 55. Qf4+ {[%emt 0:00:53]} Ke7 {[%emt 0:08:52]} 56. Qc7+ {[%emt 0:00:33]} Ke6 {[%emt 0:05:01]} 1/2-1/2

[Event "WYCC 2018 G18"]
[Site "Halkidiki"]
[Date "2018.10.27"]
[Round "8"]
[White "Sargsyan, Anna M."]
[Black "Obolentseva, Alexandra"]
[Result "1/2-1/2"]
[ECO "A48"]
[WhiteElo "2331"]
[BlackElo "2298"]
[Annotator "NA"]
[PlyCount "113"]
[EventDate "2018.10.20"]
[EventType "swiss"]
[EventCountry "GRE"]
[SourceTitle "playchess.com"]
[Source "ChessBase"]
[SourceQuality "1"]
[TimeControl "40/5400+30:1800+30"]

1. d4 {[%emt 0:00:00]} Nf6 {[%emt 0:00:00]} 2. Nf3 {[%emt 0:00:00]} g6 {[%emt 0:00:00]} 3. Bg5 {[%emt 0:00:00]} Bg7 {[%emt 0:00:00]} 4. Nbd2 {[%emt 0:00:00]} d5 {[%emt 0:00:10]} 5. e3 {[%emt 0:00:08]} O-O {[%emt 0:00:11]} 6. Be2 {[%emt 0:00:53]} Nbd7 {[%emt 0:00:42]} 7. O-O {[%emt 0:00:32]} c5 {[%emt 0:00:07]} 8. c3 {[%emt 0:00:05]} b6 {[%emt 0:00:42]} 9. a4 {[%emt 0:00:41]} a6 {[%emt 0:00:10]} 10. Qb3 {[%emt 0:01:47]} h6 {[%emt 0:03:31]} 11. Bh4 {[%emt 0:05:03]} Bb7 {[%emt 0:02:00]} 12. Rfd1 {[%emt 0:01:04]} g5 {[%emt 0:02:00]} 13. Bg3 {[%emt 0:00:05]} Nh5 {[%emt 0:00:36]} 14. Qa3 {[%emt 0:20:46]} Nxg3 {[%emt 0:01:19]} 15. hxg3 {[%emt 0:00:04]} Qc7 {[%emt 0:05:15]} 16. Rac1 {[%emt 0:01:23]} e5 $11 {[%emt 0:03:58]} 17. c4 {[%emt 0:03:52]} exd4 {[%emt 0:13:47]} 18. exd4 {[%emt 0:00:52]} Qb8 {[%emt 0:10:05]} 19. a5 {[%emt 0:06:38]} cxd4 {[%emt 0:05:45]} 20. axb6 {[%emt 0:02:18]} dxc4 {[%emt 0:07:35]} 21. Nxc4 {[%emt 0:01:00]} Bd5 {[%emt 0:12:24]} 22. Nxd4 {[%emt 0:13:35]} Nxb6 {[%emt 0:00:42]} 23. Ne3 {[%emt 0:01:13]} Be6 {[%emt 0:09:41]} 24. Nc6 {[%emt 0:05:01]} Qe8 {[%emt 0:00:06]} 25. Bf3 {[%emt 0:00:18]} Kh8 {[%emt 0:00:37]} 26. Qa5 {[%emt 0:03:55]} Nd7 {[%emt 0:00:45]} 27. Nf5 {[%emt 0:01:52]} Bxf5 {[%emt 0:04:57]} 28. Qxf5 {[%emt 0:00:08]} Nf6 {[%emt 0:00:07]} 29. Rd6 {[%emt 0:02:28]} g4 {[%emt 0:00:40]} 30. Bd1 {[%emt 0:06:27]} Nh7 {[%emt 0:00:05]} 31. Bc2 {[%emt 0:01:36]} Ng5 {[%emt 0:00:06]} 32. Qxg4 {[%emt 0:05:00]} f5 {[%emt 0:00:05]} 33. Qb4 {[%emt 0:01:39]} Nf7 {[%emt 0:02:04]} 34. Re1 {[%emt 0:01:45]} Qxe1+ {[%emt 0:00:19]} 35. Qxe1 {[%emt 0:00:05]} Nxd6 {[%emt 0:00:05]} 36. Qb4 {[%emt 0:01:46]} Rf6 {[%emt 0:00:44]} 37. Ne7 {[%emt 0:01:45]} a5 {[%emt 0:02:03]} 38. Qf4 {[%emt 0:02:40]} Re6 {[%emt 0:01:45]} 39. Nxf5 {[%emt 0:02:15]} Rf8 {[%emt 0:00:06]} 40. Qg4 {[%emt 0:00:00]} Nxf5 {[%emt 0:00:00]} 41. Bxf5 {[%emt 0:01:29]} Re1+ {[%emt 0:05:42]} 42. Kh2 {[%emt 0:00:11]} Re5 {[%emt 0:00:04]} 43. Bd3 {[%emt 0:04:29]} Rxf2 {[%emt 0:01:04]} 44. Qg6 {[%emt 0:00:13]} Kg8 {[%emt 0:00:04]} 45. Qh7+ {[%emt 0:00:17]} Kf8 {[%emt 0:00:06]} 46. Bc4 {[%emt 0:00:45]} Rf7 {[%emt 0:03:59]} 47. Bxf7 {[%emt 0:03:10]} Kxf7 {[%emt 0:00:05]} 48. g4 {[%emt 0:01:19]} Rb5 {[%emt 0:00:32]} 49. b3 {[%emt 0:00:06]} Kf8 {[%emt 0:01:00]} 50. Qd3 {[%emt 0:00:32]} Rg5 {[%emt 0:00:17]} 51. Kg3 {[%emt 0:00:24]} Kg8 {[%emt 0:00:16]} 52. Kf4 {[%emt 0:00:56]} Kh8 {[%emt 0:00:31]} 53. Qd8+ {[%emt 0:01:02]} Kh7 {[%emt 0:00:06]} 54. Qe8 {[%emt 0:01:40]} Bh8 {[%emt 0:00:06]} 55. Qe4+ {[%emt 0:09:06]} Kg8 {[%emt 0:01:08]} 56. Qe6+ {[%emt 0:00:06]} Kh7 {[%emt 0:00:07]} 57. Qe4+ {[%emt 0:00:03]} 1/2-1/2